bitfinex/quotes_ETHUSD_20210701
["timestamp","ask_amount","ask_price","bid_price","bid_amount"]
[1625160996912,0.00611488,2102.8,2102.4,0.15]
[1625160997061,0.01853443,2102.8,2102.4,0.15]
[1625160997461,0.01853443,2102.8,2102.5,0.1]
[1625160997562,0.01853443,2102.8,2102.5,2.67223224]
[1625160997660,0.01853443,2102.8,2102.6,0.15]
[1625160997764,10.2289,2104.2,2102.6,0.15]
[1625160997914,10.2289,2104.2,2102.7,0.08]
[1625160998070,10.2289,2104.2,2102.7,0.15]
[1625160998561,10.2289,2104.2,2102.8,0.0060933]
[1625160998719,10.2289,2104.2,2102.8,5.0493933]
[1625160998817,10.2289,2104.2,2102.9,0.15]
[1625160998913,10.2289,2104.2,2102.9,0.20864622]
[1625160999017,10.2289,2104.2,2102.9,0.15]
[1625160999763,10.2289,2104.2,2102.9,2.72223224]
[1625161000114,10.2289,2104.2,2103.1,7.12799]
[1625161000261,9.9789,2104.2,2103.1,0.01345791]
[1625161000361,9.9789,2104.2,2102.9,0.15]
[1625161000463,14.4212,2104.2,2102.8,0.0060933]
[1625161000562,0.09918993,2104.1,2102.8,0.0060933]
[1625161000913,0.03918993,2104.1,2102.8,0.0060933]
[1625161001064,2.40135174,2104.1,2102.3,0.15611488]
[1625161001513,7.1318,2103.9,2102.3,0.15611488]
[1625161001615,0.10683188,2103.8,2102.3,0.15611488]
[1625161002062,6.36363188,2103.9,2102.3,0.15611488]
[1625161002164,7.42643188,2103.9,2102.3,0.15611488]
[1625161002265,2.41643188,2103.9,2102.3,0.15611488]
[1625161002365,6.0728,2103.9,2102.3,0.15611488]
[1625161002523,1.0628,2103.9,2102.3,0.15611488]
[1625161002621,6.0728,2103.9,2102.3,0.15611488]
[1625161002827,7.13238,2103.7,2102.3,0.15611488]
[1625161003025,15.28968,2103.7,2102.3,0.15611488]
[1625161003125,18.27968,2103.7,2102.3,0.00611488]
[1625161003229,23.28968,2103.7,2102.3,0.00611488]
[1625161004584,7.13295,2103.5,2102.3,0.00611488]
[1625161004840,16.1573,2103.7,2102.3,0.00611488]
[1625161004928,0.12,2103.4,2102.3,0.00611488]
[1625161005029,29.2,2103.3,2101.8,0.00614082]
[1625161005176,29.2,2103.3,2101.8,8.2e-07]
[1625161005177,3.4493879,2103.2,2101.8,8.2e-07]
[1625161005271,0.00611488,2102.8,2101.8,8.2e-07]
[1625161005372,0.04715588,2102.7,2101.8,8.2e-07]
[1625161005474,0.15,2102.6,2101.8,8.2e-07]
[1625161005571,7.13782,2102.3,2101.8,8.2e-07]
[1625161005721,0.15,2102.2,2101.8,8.2e-07]
[1625161005819,3.3363,2102.2,2101.8,8.2e-07]
[1625161006074,8.3463,2102.2,2101.8,8.2e-07]
[1625161006169,11.3363,2102.2,2101.8,8.2e-07]
[1625161006272,16.3463,2102.2,2101.3,0.00617181]
[1625161006469,0.04,2102.1,2101.3,0.00617181]
[1625161006673,7.13785,2102.0,2101.3,0.00617181]
[1625161006869,12.14785,2102.0,2101.3,0.00617181]
[1625161007220,5.01,2102.0,2101.3,0.00617181]
[1625161007418,3.1863,2102.2,2101.3,0.00617181]
[1625161007722,0.01358064,2102.0,2101.3,0.00617181]
[1625161008679,3.48008064,2102.0,2101.3,0.00617181]
[1625161008824,0.08,2101.9,2101.3,0.00617181]
[1625161009967,10.0,2101.9,2101.3,0.00617181]
[1625161010456,10.0,2101.9,2100.8,0.00620865]
[1625161010606,36.4,2101.9,2100.8,0.00620865]
[1625161010755,0.00617181,2101.8,2100.8,0.00620865]
[1625161010961,0.00617181,2101.8,2100.8,7.14284865]
[1625161011890,0.00617181,2101.8,2100.8,0.00620865]
[1625161011992,7.13892,2101.5,2100.8,0.00620865]
[1625161012241,10.0,2101.4,2100.8,0.00620865]
[1625161012488,15.01,2101.4,2100.8,0.00620865]
[1625161013089,0.04,2101.3,2100.8,0.00620865]
[1625161013288,11.5466,2101.4,2100.8,0.00620865]
[1625161013640,16.5566,2101.4,2100.8,0.00620865]
[1625161014341,7.13958,2101.3,2100.8,0.00620865]
[1625161014541,27.14958,2101.3,2100.8,0.00620865]
[1625161014743,0.08,2101.2,2100.8,0.00620865]
[1625161015395,11.23437,2101.0,2100.8,0.00620865]
[1625161015645,16.24437,2101.0,2100.8,0.00620865]
[1625161015999,24.24437,2101.0,2100.8,0.00620865]
[1625161016105,25.55207,2101.0,2100.8,0.00620865]
[1625161016301,25.55207,2101.0,2100.8,8.65e-06]
[1625161016400,0.16,2100.9,2100.8,8.65e-06]
[1625161016650,29.15,2100.8,2099.8,0.00630349]
[1625161016853,0.2,2100.7,2099.8,0.00630349]
[1625161017157,0.06,2100.6,2099.8,0.00630349]
[1625161017454,10.06,2100.6,2099.8,0.00630349]
[1625161017558,23.07,2100.6,2099.8,0.00630349]
[1625161017906,15.07,2100.6,2099.8,0.00630349]
[1625161018105,23.07,2100.6,2099.8,0.00630349]
[1625161018339,23.01,2100.6,2099.8,0.00630349]
[1625161018497,20.70103,2100.4,2099.8,0.00630349]
[1625161018798,8.0,2100.3,2099.8,0.00630349]
[1625161018950,0.04,2100.2,2099.8,0.00630349]
[1625161019449,7.18353,2100.2,2099.8,0.00630349]
[1625161019550,5.01,2100.2,2099.8,0.00630349]
[1625161019750,5.01,2100.4,2099.8,0.00630349]
[1625161019854,0.01625053,2100.5,2099.8,0.00630349]
[1625161021250,0.1,2100.4,2099.8,0.00630349]
[1625161021351,4.3248,2100.4,2099.8,0.00630349]
[1625161021448,15.0,2100.3,2099.8,0.00630349]
[1625161021550,20.01,2100.3,2099.8,0.00630349]
[1625161021700,38.01,2100.3,2099.8,0.00630349]
[1625161021800,0.2,2100.2,2099.8,0.00630349]
[1625161021950,0.16,2100.1,2099.8,0.00630349]
[1625161022299,17.14485,2100.0,2099.8,0.00630349]
[1625161022548,22.15485,2100.0,2099.8,0.00630349]
[1625161022749,27.01,2099.9,2099.8,0.00630349]
[1625161022998,5.17,2099.9,2099.8,0.00630349]
[1625161023198,0.16,2099.9,2099.8,0.00630349]
[1625161023299,5.17,2099.9,2099.8,0.00630349]
[1625161023400,20.17,2099.9,2099.8,0.00630349]
[1625161023500,15.16,2099.9,2099.8,0.00630349]
[1625161023655,28.17,2099.9,2099.8,0.00630349]
[1625161024005,13.17,2099.9,2099.8,0.00630349]
[1625161024101,5.17,2099.9,2099.8,0.00630349]
[1625161024287,5.01,2099.9,2099.8,0.00630349]
[1625161024382,10.0,2100.0,2099.8,0.00630349]
[1625161024383,15.01,2100.0,2099.8,0.00630349]
[1625161025379,5.01,2100.0,2099.8,0.00630349]
[1625161025477,5.01,2100.0,2098.8,0.00643334]
[1625161025478,25.4,2099.9,2098.8,0.00643334]
[1625161025576,30.41,2099.9,2098.8,0.00643334]
[1625161025677,10.9414,2100.4,2098.8,0.00643334]
[1625161025829,0.00630349,2100.3,2098.8,0.02169455]
[1625161025926,0.00630349,2100.3,2098.9,0.17225897]
[1625161026377,0.00630349,2100.3,2098.8,0.00643334]
[1625161026578,7.14982349,2100.3,2099.0,7.14307]
[1625161026877,0.06,2100.2,2098.8,9.53030334]
[1625161027230,12.15982349,2100.3,2098.8,9.53030334]
[1625161027379,7.14982349,2100.3,2098.8,9.53030334]
[1625161027481,0.00630349,2100.3,2098.8,14.54030334]
[1625161027579,0.00630349,2100.3,2098.8,18.10610334]
[1625161027882,0.00630349,2100.3,2099.4,7.1417]
[1625161028080,0.00630349,2100.3,2099.4,7.32362629]
[1625161028180,0.00630349,2100.3,2099.4,0.18192629]
[1625161028329,0.00630349,2100.3,2099.3,4.60166349]
[1625161028431,0.00630349,2100.3,2099.3,9.61166349]
[1625161029080,0.02238284,2100.3,2099.3,9.61166349]
[1625161029191,0.02238284,2100.3,2099.5,7.14078]
[1625161029383,0.02238284,2100.3,2099.3,0.15636349]
[1625161029630,0.02238284,2100.3,2099.3,0.00636349]
[1625161030182,7.1431,2100.2,2099.3,0.00636349]
[1625161030283,11.2894,2100.2,2099.3,0.00636349]
[1625161030429,10.0,2100.1,2099.3,0.00636349]
[1625161030530,15.15,2100.1,2099.3,0.00636349]
[1625161030732,5.15,2100.1,2099.3,0.00636349]
[1625161030931,9.1563,2100.2,2099.3,0.00636349]
[1625161031433,9.1563,2100.2,2099.3,7.14814349]
[1625161031730,9.1563,2100.2,2099.3,0.00636349]
[1625161032465,16.29921,2100.2,2099.3,0.00636349]
[1625161032667,0.04,2100.1,2099.3,0.00636349]
[1625161032916,9.1563,2100.2,2099.3,0.00636349]
[1625161032917,5.01,2100.2,2099.3,0.00636349]
[1625161033067,0.02238284,2100.3,2099.3,0.00636349]
[1625161034477,7.16531284,2100.3,2099.3,0.00636349]
[1625161034572,12.17531284,2100.3,2099.3,0.00636349]
[1625161034774,10.0,2100.1,2099.3,0.00636349]
[1625161035028,15.01,2100.1,2099.3,0.00636349]
[1625161035481,5.01,2100.1,2099.3,0.00636349]
[1625161035581,7.14349,2100.0,2099.3,0.00636349]
[1625161035682,22.53478,2100.2,2099.3,0.00636349]
[1625161036422,2.72238284,2100.3,2099.3,0.00636349]
[1625161036774,7.14321,2100.1,2099.3,0.00636349]
[1625161037723,12.15321,2100.1,2099.3,0.00636349]
[1625161037875,7.14321,2100.1,2099.3,0.00636349]
[1625161038125,12.15321,2100.1,2099.3,0.00636349]
[1625161038376,0.06,2100.0,2099.3,0.00636349]
[1625161038478,15.06,2100.0,2099.3,0.00636349]
[1625161038632,38.07,2100.0,2099.3,0.00636349]
[1625161039133,3.57271,2099.9,2099.3,3.49e-06]
[1625161039234,15.0,2099.8,2099.3,3.49e-06]
[1625161039428,10.7181099,2099.7,2099.3,3.49e-06]
[1625161039559,15.2,2099.6,2099.3,3.49e-06]
[1625161039661,13.57372,2099.5,2099.3,3.49e-06]
[1625161039814,15.0,2099.4,2098.8,6.83e-06]
[1625161040013,0.15,2099.3,2098.8,6.83e-06]
[1625161040110,3.8017,2099.3,2098.8,6.83e-06]
[1625161040210,15.0,2099.2,2098.8,6.83e-06]
[1625161040314,25.0,2099.2,2098.8,6.83e-06]
[1625161040463,8.2,2099.1,2098.8,6.83e-06]
[1625161040564,15.0,2099.0,2098.8,6.83e-06]
[1625161040665,29.15,2098.9,2097.8,0.00660742]
[1625161040765,3.57477,2098.7,2097.8,0.00660742]
[1625161040886,8.17103468,2098.7,2097.8,0.00660742]
[1625161040987,21.18103468,2098.7,2097.8,0.00660742]
[1625161041085,31.18103468,2098.7,2097.8,0.00660742]
[1625161041185,0.04,2098.6,2097.8,0.00660742]
[1625161041786,7.14945,2098.4,2097.8,0.00660742]
[1625161042034,12.15945,2098.4,2097.8,0.00660742]
[1625161042239,7.14945,2098.4,2097.8,0.00660742]
[1625161042487,28.5,2098.3,2097.0,11.87385159]
[1625161042835,0.00671417,2097.8,2097.0,11.87385159]
[1625161042935,3.3129,2098.1,2097.1,29.15]
[1625161043176,4.6064,2098.1,2097.3,7.1489]
[1625161043374,4.6064,2098.1,2097.3,7.15561417]
[1625161045179,1.2935,2098.1,2097.3,7.15561417]
[1625161045404,0.00660742,2098.3,2097.3,10.50781417]
[1625161045503,0.00660742,2098.3,2097.3,15.51781417]
[1625161046254,0.00660742,2098.3,2097.3,8.36891417]
[1625161046416,0.00660742,2098.3,2097.4,2.51286939]
[1625161046502,0.00660742,2098.3,2097.4,2.66286939]
[1625161046651,0.00660742,2098.3,2097.4,7.67286939]
[1625161046802,0.00660742,2098.3,2097.5,2.38272873]
[1625161047000,0.00660742,2098.3,2097.6,0.15]
[1625161047299,0.00660742,2098.3,2097.9,7.14569]
[1625161047503,0.00660742,2098.3,2097.9,7.29569]
[1625161047927,0.00660742,2098.3,2097.9,7.24569]
[1625161048379,0.00660742,2098.3,2097.9,0.15]
[1625161048734,0.00660742,2098.3,2097.9,0.1]
[1625161048828,0.00660742,2098.3,2097.5,12.04178939]
[1625161049380,0.00660742,2098.3,2097.9,7.14673]
[1625161050029,0.00660742,2098.3,2097.7,9.52898]
[1625161050175,0.00660742,2098.3,2097.4,0.15]
[1625161050374,4.35240742,2098.3,2097.3,9.53716417]
[1625161050476,4.36766233,2098.3,2097.3,9.53716417]
[1625161050574,9.37766233,2098.3,2097.3,9.53716417]
[1625161051521,9.37766233,2098.3,2097.5,7.14815]
[1625161051873,9.37766233,2098.3,2097.3,9.53716417]
[1625161052575,16.52657233,2098.3,2097.3,9.53716417]
[1625161052680,9.37766233,2098.3,2097.3,9.53716417]
[1625161053377,9.37766233,2098.3,2097.3,9.53045]
[1625161053477,9.37766233,2098.3,2097.3,9.48716417]
[1625161053679,0.00671417,2097.8,2097.3,9.48716417]
[1625161053779,0.00671417,2097.8,2097.3,14.49716417]
[1625161056204,0.00671417,2097.8,2097.4,0.15]
[1625161056305,0.00671417,2097.8,2097.4,4.6425]
[1625161056618,0.00671417,2097.8,2097.4,9.6525]
[1625161056722,0.00671417,2097.8,2097.4,4.6425]
[1625161056821,0.00671417,2097.8,2097.4,9.6525]
[1625161056974,0.00671417,2097.8,2097.6,7.14728]
[1625161057072,0.00671417,2097.8,2097.6,12.15728]
[1625161057275,0.00671417,2097.8,2097.7,20.9]
[1625161057375,0.00671417,2097.8,2097.7,23.41286939]
[1625161057472,0.00671417,2097.8,2097.7,28.42286939]
[1625161057625,0.02186233,2098.3,2097.7,28.42286939]
[1625161057626,0.02186233,2098.3,2097.8,27.1]
[1625161057824,0.02186233,2098.3,2097.9,0.15]
[1625161058422,0.02186233,2098.3,2098.0,7.14674]
[1625161058624,0.02186233,2098.3,2098.0,7.29674]
[1625161062297,0.00651424,2098.8,2098.0,7.29674]
[1625161062449,0.00651424,2098.8,2098.1,0.06]
[1625161062546,0.00651424,2098.8,2098.2,0.17677973]
[1625161062645,0.00651424,2098.8,2098.2,0.15]
[1625161062797,0.00651424,2098.8,2098.3,0.15]
[1625161062998,0.00651424,2098.8,2098.3,1.09275868]
[1625161063194,0.00651424,2098.8,2098.3,3.60562807]
[1625161063295,0.00651424,2098.8,2098.3,8.61562807]
[1625161063539,0.00651424,2098.8,2098.3,10.06952067]
[1625161063841,0.00651424,2098.8,2098.5,7.14431]
[1625161063990,0.00651424,2098.8,2098.5,10.40541]
[1625161064092,0.00651424,2098.8,2098.6,0.15]
[1625161064992,0.00651424,2098.8,2098.7,7.14398]
[1625161065094,4.24e-06,2098.8,2098.7,41.30398]
[1625161065247,4.24e-06,2098.8,2098.7,41.45398]
[1625161065343,4.24e-06,2098.8,2098.7,41.53398]
[1625161065447,0.00643334,2099.3,2098.7,44.04684939]
[1625161065543,0.00643334,2099.3,2098.8,0.23171624]
[1625161065664,0.00643334,2099.3,2098.8,0.33171624]
[1625161065811,0.00643334,2099.3,2098.9,3.62680287]
[1625161066007,0.00643334,2099.3,2098.9,8.63680287]
[1625161066108,0.00643334,2099.3,2098.9,3.79924299]
[1625161066207,0.00643334,2099.3,2098.9,8.63680287]
[1625161066712,0.00643334,2099.3,2099.0,7.14154]
[1625161066810,0.00643334,2099.3,2099.0,10.21004]
[1625161066910,7.896e-05,2099.6,2099.2,29.15]
[1625161067015,7.896e-05,2099.6,2099.2,34.16]
[1625161067111,7.896e-05,2099.6,2099.3,0.15]
[1625161067365,0.00630349,2100.3,2099.5,0.29355964]
[1625161067565,0.00630349,2100.3,2099.6,0.15]
[1625161067670,0.00630349,2100.3,2099.7,0.28257571]
[1625161067909,0.00630349,2100.3,2099.8,0.16754037]
[1625161067997,0.00630349,2100.3,2099.9,7.33804603]
[1625161068097,0.00630349,2100.3,2099.9,12.36124672]
[1625161068244,0.00630349,2100.3,2100.0,3.9763]
[1625161068443,0.00630349,2100.3,2100.0,8.9863]
[1625161069398,0.00630349,2100.3,2100.1,7.13883]
[1625161069599,0.00630349,2100.3,2099.8,2.61909834]
[1625161069698,0.00630349,2100.3,2099.7,0.15]
[1625161070602,0.00630349,2100.3,2099.9,7.13921]
[1625161070800,0.00630349,2100.3,2100.0,0.15]
[1625161071300,0.00630349,2100.3,2100.2,0.0204886]
[1625161071755,15.7,2100.2,2099.0,11.9182]
[1625161071854,15.7,2100.2,2099.0,1.8]
[1625161072007,0.16,2100.1,2098.8,0.15]
[1625161072153,28.71,2100.2,2098.8,0.15]
[1625161072717,28.71,2100.2,2099.3,0.00636349]
[1625161073067,7.14354,2099.8,2099.3,0.00636349]
[1625161073166,10.36684,2099.8,2099.3,0.00636349]
[1625161073267,15.37684,2099.8,2099.3,0.00636349]
[1625161073466,0.04,2099.7,2099.3,0.00636349]
[1625161073714,0.0496492,2099.7,2099.3,0.00636349]
[1625161074214,0.0096492,2099.7,2099.3,0.00636349]
[1625161076452,0.0096492,2099.8,2099.3,0.00636349]
[1625161076752,0.01375684,2099.7,2099.3,0.00636349]
[1625161080287,0.01375684,2099.7,2099.3,7.14852349]
[1625161080490,0.01375684,2099.7,2099.3,0.00636349]
[1625161080590,5.01630349,2100.3,2099.4,8.3]
[1625161080787,0.00630349,2100.3,2099.4,8.3]
[1625161080891,0.16,2100.2,2099.4,8.3]
[1625161081140,0.00630349,2100.3,2099.4,8.3]
[1625161081442,7.14859349,2100.3,2099.4,5.01]
[1625161081524,7.14859349,2100.3,2099.3,0.00636349]
[1625161081623,11.27089349,2100.3,2099.3,0.00636349]
[1625161081721,19.27089349,2100.3,2099.3,0.00636349]
[1625161081823,12.12860349,2100.3,2099.3,0.00636349]
[1625161082125,0.08,2100.2,2099.3,0.00636349]
[1625161082524,0.08973767,2100.2,2099.3,0.00636349]
[1625161082779,7.23262767,2100.2,2099.3,0.00636349]
[1625161083077,12.24262767,2100.2,2099.3,0.00636349]
[1625161083180,7.23262767,2100.2,2099.3,0.00636349]
[1625161083277,12.24262767,2100.2,2099.3,0.00636349]
[1625161083526,0.04,2100.1,2099.3,0.00636349]
[1625161083646,12.16262767,2100.2,2099.3,0.00636349]
[1625161084047,20.16262767,2100.2,2099.3,0.00636349]
[1625161084257,9.52464,2100.1,2099.3,0.00636349]
[1625161084451,0.14,2100.0,2099.3,0.00636349]
[1625161084763,3.7122756,2100.0,2099.3,0.00636349]
[1625161084964,3.57232,2099.9,2099.3,0.00636349]
[1625161085060,8.58232,2099.9,2099.3,0.00636349]
[1625161085163,9.78292,2099.9,2099.3,0.00636349]
[1625161085261,7.1451,2099.7,2099.3,0.00636349]
[1625161085415,10.7179998,2099.7,2099.3,0.00636349]
[1625161085513,3.57307,2099.5,2099.3,0.00636349]
[1625161085615,4.77527,2099.5,2099.3,0.00636349]
[1625161085711,9.78527,2099.5,2099.3,0.00636349]
[1625161085923,23.61,2099.4,2099.3,0.00636349]
[1625161086074,5.17,2099.4,2099.3,0.00636349]
[1625161086327,0.16,2099.4,2099.3,0.00636349]
[1625161086427,5.17,2099.4,2099.3,0.00636349]
[1625161086525,0.16,2099.4,2099.3,0.00636349]
[1625161086624,5.17,2099.4,2099.3,0.00636349]
[1625161086823,0.16,2099.4,2099.3,0.00636349]
[1625161086926,0.171918,2099.4,2099.3,0.00636349]
[1625161087278,0.1836137,2099.4,2099.3,0.00636349]
[1625161088640,20.15,2099.3,2098.8,0.00643334]
[1625161088743,7.14599,2099.2,2098.8,0.00643334]
[1625161088995,5.01,2099.2,2098.8,0.00643334]
[1625161089142,0.011918,2099.2,2098.8,0.00643334]
[1625161089643,0.0236137,2099.4,2098.8,0.00643334]
[1625161090490,7.1689137,2099.4,2098.8,0.00643334]
[1625161090596,12.1789137,2099.4,2098.8,0.00643334]
[1625161090992,0.011918,2099.3,2098.8,0.00643334]
[1625161091441,3.316218,2099.3,2098.8,0.00643334]
[1625161091542,8.326218,2099.3,2098.8,0.00643334]
[1625161091943,0.071918,2099.2,2098.8,0.00643334]
[1625161092394,7.217738,2099.2,2098.8,0.00643334]
[1625161092548,12.227738,2099.2,2098.8,0.00643334]
[1625161092747,0.04,2099.1,2098.8,0.00643334]
[1625161093242,0.051918,2099.1,2098.8,0.00643334]
[1625161093444,0.011918,2099.1,2098.8,0.00643334]
[1625161094295,7.14677,2099.0,2098.8,0.00643334]
[1625161094500,12.15677,2099.0,2098.8,0.00643334]
[1625161094596,7.14677,2099.0,2098.8,0.00643334]
[1625161094750,12.15677,2099.0,2098.8,0.00643334]
[1625161094904,29.35,2098.9,2098.8,3.34e-06]
[1625161095008,37.361918,2098.9,2098.8,3.34e-06]
[1625161095158,42.371918,2098.9,2098.8,3.34e-06]
[1625161095598,13.221918,2098.9,2098.8,3.34e-06]
[1625161095798,28.221918,2098.9,2098.8,3.34e-06]
[1625161097647,33.221918,2098.9,2098.3,7.58e-06]
[1625161097799,10.0,2098.6,2098.3,7.58e-06]
[1625161097898,20.0,2098.5,2098.3,7.58e-06]
[1625161098004,28.0,2098.5,2098.3,7.58e-06]
[1625161098100,33.01,2098.5,2098.3,7.58e-06]
[1625161098201,0.2,2098.4,2098.3,7.58e-06]
[1625161098648,0.211918,2098.4,2098.3,7.58e-06]
[1625161101394,0.211918,2098.4,2097.2,0.02213639]
[1625161101395,29.15,2098.3,2096.8,0.00683581]
[1625161101499,15.08997333,2098.2,2096.8,0.00683581]
[1625161101670,3.9,2097.9,2096.8,0.00683581]
[1625161101756,0.00671417,2097.8,2096.8,0.00683581]
[1625161102008,7.1522,2097.4,2096.8,0.00683581]
[1625161102108,10.2182,2097.4,2096.8,0.00683581]
[1625161102206,15.2282,2097.4,2096.8,0.00683581]
[1625161102807,0.011918,2097.3,2096.8,0.00683581]
[1625161103660,13.41933265,2097.4,2096.9,6.1]
[1625161103763,13.41933265,2097.4,2096.8,0.00683581]
[1625161103764,14.57243265,2097.4,2096.8,0.00683581]
[1625161105696,3.066,2097.4,2096.8,0.00683581]
[1625161105799,1.7318,2097.5,2096.8,2.63407933]
[1625161105903,0.00671417,2097.8,2096.8,2.64802556]
[1625161106145,0.00671417,2097.8,2096.9,0.16580155]
[1625161106490,0.00671417,2097.8,2096.9,5.38443601]
[1625161106647,0.00671417,2097.8,2096.9,5.21863446]
[1625161106793,0.00671417,2097.8,2096.9,5.38273442]
[1625161107041,0.00671417,2097.8,2096.9,5.21863446]
[1625161107597,0.00671417,2097.8,2097.1,11.53037]
[1625161107792,0.00671417,2097.8,2097.1,16.54037]
[1625161108042,0.00671417,2097.8,2097.1,11.53037]
[1625161108401,0.00671417,2097.8,2097.1,4.3808]
[1625161108752,0.02090957,2097.8,2097.1,4.3808]
[1625161108858,0.02090957,2097.8,2096.8,0.00683581]
[1625161109002,4.38080957,2097.8,2096.8,0.00683581]
[1625161109250,9.39080957,2097.8,2096.8,0.00683581]
[1625161109905,16.54158957,2097.8,2096.8,0.00683581]
[1625161112240,9.39080957,2097.8,2096.8,5.22547027]
[1625161112346,9.39080957,2097.8,2096.8,12.52603027]
[1625161113445,16.54126957,2097.8,2096.8,12.52603027]
[1625161114551,9.39080957,2097.8,2096.8,12.52603027]
[1625161115185,9.39080957,2097.8,2096.8,5.37547027]
[1625161116540,16.54093957,2097.8,2096.8,12.52603027]
[1625161118920,9.39080957,2097.8,2096.8,12.52603027]
[1625161120402,16.54093957,2097.8,2096.8,12.52603027]
[1625161124151,7.17103957,2097.8,2096.8,16.73603027]
[1625161124301,0.02090957,2097.8,2096.9,0.35986734]
[1625161124454,0.02090957,2097.8,2096.8,14.61543954]
[1625161124600,0.02090957,2097.8,2096.9,2.62724352]
[1625161124701,0.02090957,2097.8,2096.9,5.21863446]
[1625161124902,0.02090957,2097.8,2096.9,10.22863446]
[1625161125007,0.02090957,2097.8,2096.9,10.24150401]
[1625161125105,0.02090957,2097.8,2096.9,10.22863446]
[1625161125202,0.02090957,2097.8,2097.0,0.15]
[1625161125759,0.02090957,2097.8,2097.3,7.14924]
[1625161125912,9.5334,2098.1,2097.1,23.1]
[1625161126106,9.5334,2098.1,2097.1,28.11]
[1625161126256,9.5334,2098.1,2097.1,5.01]
[1625161126418,9.5334,2098.1,2097.0,14.69242]
[1625161126516,9.5334,2098.1,2097.0,9.68242]
[1625161126768,9.5334,2098.1,2097.3,0.00671417]
[1625161126867,7.14988,2097.7,2097.3,0.00671417]
[1625161127068,12.15988,2097.7,2097.3,0.00671417]
[1625161127167,5.01,2098.0,2097.3,0.00671417]
[1625161127268,5.01,2097.9,2097.3,0.00671417]
[1625161127368,5.01,2098.0,2097.3,0.00671417]
[1625161127570,8.58503,2098.1,2097.3,0.00671417]
[1625161127717,3.57503,2098.1,2097.3,0.00671417]
[1625161127818,8.58503,2098.1,2097.3,0.00671417]
[1625161127919,7.14984,2097.7,2097.3,0.00671417]
[1625161128018,12.15984,2097.7,2097.3,0.00671417]
[1625161128468,5.01,2097.7,2097.3,0.00671417]
[1625161128651,18.11748,2098.1,2097.3,0.00671417]
[1625161129451,7.14949,2097.8,2097.3,0.00671417]
[1625161129551,12.15949,2097.8,2097.3,0.00671417]
[1625161132408,7.14949,2097.8,2097.3,0.00671417]
[1625161132610,12.15949,2097.8,2097.3,0.00671417]
[1625161135850,12.15949,2097.8,2097.3,7.15610417]
[1625161135950,5.01,2097.8,2097.3,7.15610417]
[1625161136101,5.01,2097.9,2097.3,7.15610417]
[1625161136300,8.58503,2098.1,2097.3,7.15610417]
[1625161136400,3.57503,2098.1,2097.3,7.15610417]
[1625161136501,8.58503,2098.1,2097.3,7.15610417]
[1625161136602,3.57503,2098.1,2097.3,7.15610417]
[1625161136703,8.58503,2098.1,2097.3,7.15610417]
[1625161137455,7.14935,2097.9,2097.3,7.15610417]
[1625161137643,12.15935,2097.9,2097.3,7.15610417]
[1625161137699,7.14935,2097.9,2097.3,7.15610417]
[1625161137800,12.15935,2097.9,2097.3,7.15610417]
[1625161138002,5.01,2097.9,2097.3,7.15610417]
[1625161138202,28.8841529,2098.2,2097.3,7.15610417]
[1625161138306,14.54237,2098.2,2097.3,7.15610417]
[1625161138504,7.14898,2098.0,2097.3,7.15610417]
[1625161139403,12.15898,2098.0,2097.3,7.15610417]
[1625161140151,0.08,2097.9,2097.3,7.15610417]
[1625161140699,14.54237,2098.2,2097.3,7.15610417]
[1625161140798,14.54237,2098.2,2097.3,11.93700417]
[1625161142000,7.1493,2097.9,2097.3,11.88700417]
[1625161142297,0.00671417,2097.8,2097.3,11.88700417]
[1625161142548,9.34265737,2097.9,2097.4,18.05]
[1625161142648,4.33265737,2097.9,2097.3,11.88700417]
[1625161142747,9.34265737,2097.9,2097.3,11.88700417]
[1625161142847,9.34265737,2097.9,2097.3,11.89371834]
[1625161147259,9.34265737,2097.9,2097.3,4.78761417]
[1625161147458,9.34265737,2097.9,2097.3,0.00671417]
[1625161147756,0.08,2097.8,2097.3,0.00671417]
[1625161148509,7.15081,2097.6,2097.3,0.00671417]
[1625161148761,5.01,2097.6,2097.3,0.00671417]
[1625161148919,18.1183884,2098.0,2097.3,0.00671417]
[1625161148920,5.01,2098.0,2097.3,0.00671417]
[1625161149015,5.01,2098.0,2097.3,3.39521417]
[1625161149117,8.0,2098.1,2097.3,3.39521417]
[1625161149118,13.01,2098.1,2097.3,3.39521417]
[1625161149315,5.01,2098.1,2097.3,3.39521417]
[1625161149424,10.49240742,2098.3,2097.3,11.03245769]
[1625161149521,0.00660742,2098.3,2097.3,11.03245769]
[1625161149624,0.00660742,2098.3,2097.4,0.15]
[1625161149871,0.00660742,2098.3,2097.5,2.62724352]
[1625161150023,0.00660742,2098.3,2097.5,11.21048352]
[1625161150125,0.00660742,2098.3,2097.6,0.15]
[1625161150532,0.00660742,2098.3,2097.8,4.0]
[1625161150620,0.00660742,2098.3,2097.8,12.51429]
[1625161150726,0.00660742,2098.3,2097.9,0.15]
[1625161150974,0.00660742,2098.3,2098.1,9.52759]
[1625161151727,0.00660742,2098.3,2097.9,0.15]
[1625161152227,0.00660742,2098.3,2097.9,2.77724352]
[1625161152326,0.00660742,2098.3,2098.1,9.52759]
[1625161153174,0.00660742,2098.3,2098.2,29.23]
[1625161153277,0.00660742,2098.3,2098.2,0.08]
[1625161153440,0.00651424,2098.8,2098.3,22.5]
[1625161153688,0.00651424,2098.8,2098.3,0.15]
[1625161154903,0.00651424,2098.8,2097.8,4.0]
[1625161155000,0.00651424,2098.8,2097.7,6.87]
[1625161155002,0.01226526,2098.0,2097.7,6.87]
[1625161156723,0.01226526,2098.0,2097.2,6.87]
[1625161157277,7.1493,2097.9,2097.3,27.8]
[1625161157373,7.1493,2097.9,2097.2,6.87]
[1625161157525,4.32616239,2097.9,2097.2,6.87]
[1625161157914,9.33616239,2097.9,2097.2,6.87]
[1625161157972,4.32616239,2097.9,2097.2,6.87]
[1625161158070,9.33616239,2097.9,2097.2,6.87]
[1625161158178,9.33616239,2097.9,2097.8,0.00660742]
[1625161158272,4.32616239,2097.9,2097.8,0.00660742]
[1625161158473,9.33616239,2097.9,2097.8,0.00660742]
[1625161158624,5.01,2097.9,2097.8,0.00660742]
[1625161158777,5.01,2098.4,2097.8,0.00660742]
[1625161158976,13.01,2098.5,2097.8,0.00660742]